Cogmind - Beta 9.4 @@@ ROGUE MODE // 2020.03.20 @ 18:01:54 Player: Trione Result: Destroyed by P1-3CE with P1-3CE's Gatling Flakker Performance ------------- Evolutions (1) 500 Regions Visited (6) 1200 Robots Destroyed (81) 405 Value Destroyed (1775) 1775 Prototype IDs (10) 200 Alien Tech Used (0) 0 Bonus (-742) -742 TOTAL SCORE: 3338 Bonus ------- High Alert Combat Kills 57 Follower Combat Kills 212 Friendly Fire -1011 Cogmind --------- Core Integrity 0/400 Matter 259/300 Energy 86/100 System Corruption 0% Temperature Cool (0) Movement Walking (150) Ox1 Location -8/Mines Parts ------- > --- POWER (1) -------- (None) > --- PROPULSION (2) --- Advanced Myomer Leg Advanced Myomer Leg > --- UTILITY (4) ------ Humpback > --- WEAPON (2) ------- 8R-AWN's Boregun 8R-AWN's Boregun > --- INVENTORY (24) --- Light Treads Light Treads Large Storage Unit Large Storage Unit High-capacity Storage Unit High-capacity Storage Unit Humpback Large Matter Pod (18) Gravity Neutralizing Apparatus Gravity Neutralizing Apparatus Experimental Targeting Computer 8R-AWN's Armor/TH 8R-AWN's Armor/EX EM Shotgun Improved EM Shotgun Advanced Beam Cannon Advanced Beam Cannon Grenade Launcher Rocket Launcher Mini Grenade Launcher Katana Peak State ------------ > --- POWER ------------ (None) > --- PROPULSION ------- Advanced Myomer Leg Advanced Myomer Leg > --- UTILITY ---------- Humpback Humpback > --- WEAPON ----------- 8R-AWN's Boregun 8R-AWN's Boregun > --- INVENTORY -------- Light Treads Light Treads Light Treads Light Treads Light Treads Light Treads Experimental Heat Sink Large Storage Unit Large Storage Unit Large Storage Unit Large Storage Unit Large Storage Unit High-capacity Storage Unit High-capacity Storage Unit High-capacity Storage Unit High-capacity Storage Unit Humpback Large Matter Pod Gravity Neutralizing Apparatus Gravity Neutralizing Apparatus Experimental Targeting Computer Advanced Weapon Cycler 8R-AWN's Armor/TH 8R-AWN's Armor/EX AS-neutralizer No. 17b EM Shotgun Improved EM Shotgun Improved EM Shotgun Particle Cannon Advanced Beam Cannon Advanced Beam Cannon Improved Assault Rifle Improved Assault Rifle Light Cannon Light Cannon Grenade Launcher Grenade Launcher Rocket Launcher Mini Grenade Launcher Katana [Rating: 52] Favorites ----------- Power Light Ion Engine Engine Light Ion Engine Power Core Light Nuclear Core Propulsion Light Treads Treads Light Treads Leg Advanced Myomer Leg Wheel Wheel Utility High-capacity Storage Unit Device Experimental Heat Sink Storage High-capacity Storage Unit Processor Improved Targeting Computer Protection Light Armor Plating Weapon Assault Rifle Energy Gun Improved EM Shotgun Energy Cannon Advanced Beam Cannon Ballistic Gun Assault Rifle Ballistic Cannon Light Cannon Launcher Grenade Launcher Slashing Weapon Katana Build | -11 -10 -10 -9 -9 -9 -8 ------- Run | Scr Mat Min Mat Min Exi Min Slots Evolved 2 | . . . 2 . . . Power . | . . . . . . . Propulsion . | . . . . . . . Utility 2 | . . . 2 . . . Weapon . | . . . . . . . Parts Attached 106 | 6 19 . 28 24 26 3 Power 7 | 1 . . 2 2 2 . Engine 6 | 1 . . 2 1 2 . Core 1 | . . . . 1 . . Reactor . | . . . . . . . Propulsion 18 | 2 3 . 4 4 5 . Treads 12 | . 3 . 4 2 3 . Leg 2 | . . . . . 2 . Wheel 4 | 2 . . . 2 . . Hover . | . . . . . . . Flight . | . . . . . . . Utility 22 | 1 4 . 8 1 8 . Device 3 | . . . . . 3 . Storage 11 | 1 3 . 4 . 3 . Processor 1 | . . . 1 . . . Hackware . | . . . . . . . Protection 7 | . 1 . 3 1 2 . Artifact . | . . . . . . . Weapon 59 | 2 12 . 14 17 11 3 Energy Gun 9 | . . . 3 3 3 . Energy Cannon 8 | . . . 3 5 . . Ballistic Gun 21 | 2 7 . 4 3 3 2 Ballistic Cannon 1 | . . . 1 . . . Launcher 16 | . 5 . 3 4 3 1 Special Weapon . | . . . . . . . Impact Weapon . | . . . . . . . Slashing Weapon 4 | . . . . 2 2 . Piercing Weapon . | . . . . . . . Special Melee Weapon . | . . . . . . . Unidentified Prototypes 10 | . . . 3 . 7 . Parts Lost 23 | . 2 . 3 7 3 8 Power 5 | . . . 1 2 1 1 Propulsion 6 | . 1 . . 2 1 2 Utility 6 | . . . 2 2 . 2 Weapon 6 | . 1 . . 1 1 3 Highest Loss Streak 8 | . 2 . 1 4 2 8 Average Slot Usage (%) 93 | . 99 100 97 96 80 76 Engine 9 | . 14 14 11 8 2 10 Core 2 | . . . . 2 8 . Treads 21 | . 20 28 22 21 18 . Leg 1 | . . . . . 3 22 Wheel 1 | . 7 . . . . . Storage 28 | . 23 28 30 33 26 22 Protection 4 | . 4 . 10 7 . . Energy Gun 2 | . . . 8 3 1 . Energy Cannon 4 | . . . 2 8 7 . Ballistic Gun 14 | . 27 28 8 7 9 22 Naked Turns . | . . . . . . . Heaviest Build 178 | 11 55 55 114 114 175 178 Greatest Support 60 | 20 40 40 40 40 60 60 Greatest Overweight (x) 5 | 1 1 1 2 5 5 2 Average Overweight (x) 1 | . . 1 1 2 2 2 Largest Inventory Capacity 44 | 6 18 18 28 28 44 44 Average Capacity 25 | 5 14 18 24 28 36 44 Most Carried 44 | 4 16 16 28 28 44 43 Average Carried 22 | 2 12 15 23 25 28 43 Final Capacity 44 | 6 18 18 28 28 44 24 Final Carried 43 | 4 14 16 28 24 43 24 Class Distribution -------------------- 62% | Hauler-Mutant 37% | Mutant Dominant Class ---------------- Mutant | -10/Materials Mutant | -10/Mines Hauler-Mutant | -9/Materials Hauler-Mutant | -9/Mines Hauler-Mutant | -9/Exiles Hauler-Mutant | -8/Mines Resources | -11 -10 -10 -9 -9 -9 -8 ----------- Run | Scr Mat Min Mat Min Exi Min Matter Collected 2061 | 252 501 105 516 317 281 89 Remotely . | . . . . . . . Salvage Created 2523 | 72 573 107 1109 449 195 18 Parts 152 | 1 44 4 62 25 14 2 Haulers Intercepted 4 | . 1 . 3 . . . Recyclers Shooed 1 | . . . 1 . . . Parts Field Recycled . | . . . . . . . Retrieved Matter . | . . . . . . . Parts Self-Destructed . | . . . . . . . Prevented . | . . . . . . . Kills | -11 -10 -10 -9 -9 -9 -8 ------- Run | Scr Mat Min Mat Min Exi Min Combat Hostiles Destroyed 63 | . 19 . 18 16 7 3 Melee 3 | . . . . 2 1 . Guns 18 | . 7 . 6 5 . . Cannons 5 | . . . 3 2 . . AOE 37 | . 12 . 9 7 6 3 Classes Destroyed 9 | 1 3 . 3 2 . . Worker 5 | . . . 3 2 . . Hauler 4 | . 1 . 3 . . . Recycler 5 | 1 . . 3 1 . . Swarmer 12 | . 3 . . 6 . 3 Grunt 36 | . 16 1 13 6 . . Duelist 1 | . . . 1 . . . Sentry 4 | . . . 4 . . . Demolisher 1 | . . . . 1 . . Assembled 10 | . . . . 3 7 . Thug 2 | . . 1 . . 1 . Best Kill Streak 9 | 1 5 . 9 4 6 3 Combat Bots Only 6 | . 5 . 5 4 6 3 Max Kills in Single Turn 4 | 1 3 1 4 2 2 3 Gunslinging . | . . . . . . . Exploded 3 | . 3 . 3 2 2 3 Melee 1 | . . . . 1 1 . Uniques/NPCs Destroyed 1 | . . . . . 1 . 8R-AWN (-9/Exiles) Combat | -11 -10 -10 -9 -9 -9 -8 -------- Run | Scr Mat Min Mat Min Exi Min Damage Taken 3970 | . 645 . 517 1083 758 967 Core 507 | . 91 . 38 194 62 122 Absorbed by Shields . | . . . . . . . Core Remaining (%) 81 | 100 . 63 . . . . Volleys Fired 204 | 5 41 15 49 45 45 4 Largest 2 | 2 2 2 2 2 2 2 Hottest 136 | 40 40 40 136 136 90 60 Shots Fired 335 | 10 69 30 94 66 59 7 Gun 249 | 10 56 30 61 33 53 6 Cannon 55 | . . . 29 26 . . Launcher 31 | . 13 . 4 7 6 1 Special . | . . . . . . . Kinetic 183 | 10 56 30 62 19 . 6 Thermal 40 | . . . 14 26 . . Explosive 31 | . 13 . 4 7 6 1 Electromagnetic 81 | . . . 14 14 53 . Robot Hit Streak 25 | 4 12 9 12 25 12 5 Robot Miss Streak 4 | 1 4 2 4 4 4 2 Penetration Max . | . . . . . . . Secondary Targets 1 | . . . . 1 . . Max Gunslinging Chain 1 | . . . . 1 . . Shots Hit Robots 255 | 7 47 22 59 51 64 5 Core Hits 147 | 2 42 6 45 24 23 5 Critical Hits 7 | . . 1 2 2 . 2 Critical Kills 2 | . . . 1 1 . . Critical Parts Destroyed 4 | . . 1 1 1 . 1 Melee Attacks 28 | . . . . 11 17 . Impact . | . . . . . . . Slashing 28 | . . . . 11 17 . Piercing . | . . . . . . . Sneak Attacks . | . . . . . . . Combat Hostiles . | . . . . . . . Follow-up Attacks . | . . . . . . . Damage Inflicted 6043 | 102 1355 338 1640 1386 1020 202 Guns 2096 | 102 564 338 543 433 59 57 Cannons 667 | . . . 340 327 . . Explosions 2690 | . 791 . 757 461 536 145 Melee 590 | . . . . 165 425 . Ramming . | . . . . . . . Kinetic 1863 | 102 564 338 553 249 . 57 Thermal 961 | . . . 556 327 78 . Explosive 2220 | . 791 . 365 461 458 145 Electromagnetic 409 | . . . 166 184 59 . Impact . | . . . . . . . Slashing 590 | . . . . 165 425 . Piercing . | . . . . . . . Highest Corruption 1 | . 1 1 . . . . Average Corruption 1 | . 1 1 . . . . Corruption Purged . | . . . . . . . Effects 8 | . 3 5 . . . . Message Errors 7 | . 3 4 . . . . Data Loss (minor) 1 | . . 1 . . . . Overload Shots . | . . . . . . . Overflow Damage 71 | . 8 . 20 12 31 . Projectiles 2 | . . . . 2 . . Explosions 62 | . 8 . 20 3 31 . Melee 7 | . . . . 7 . . Knockbacks . | . . . . . . . Impact . | . . . . . . . Kinetic . | . . . . . . . Secondary . | . . . . . . . Self-Inflicted Damage 183 | . 34 . . 79 40 30 Shots 7 | . 2 . . 3 1 1 Rammed . | . . . . . . . Targets Rammed . | . . . . . . . Kicked . | . . . . . . . Crushed . | . . . . . . . Highest Temperature 386 | . 13 . 234 386 317 . Average Temperature 89 | . 4 . 50 121 103 . Received Heat Transfer 1028 | . 306 . 240 482 . . Effects 3 | . . . . 2 1 . Shutdowns 2 | . . . . 1 1 . Energy Bleed 1 | . . . . 1 . . Siege Activations . | . . . . . . . Robots Corrupted . | . . . . . . . Combat Hostiles . | . . . . . . . Parts Fried 1 | . . . 1 . . . Impact Corruptions . | . . . . . . . Robots Melted . | . . . . . . . Combat Hostiles . | . . . . . . . Parts Melted 2 | . . . . 2 . . Heat Transferred 1300 | . . . 646 592 62 . Parts Sabotaged . | . . . . . . . Parts Stolen . | . . . . . . . Parts Stripped . | . . . . . . . Power Chain Reactions 4 | . . . 2 . 2 . Missiles Intercepted . | . . . . . . . Alert | -11 -10 -10 -9 -9 -9 -8 ------- Run | Scr Mat Min Mat Min Exi Min Peak Influence 511 | 5 303 87 511 233 . 79 Average Influence 144 | . 142 22 345 86 . 76 Maximum Alert Level 2 | . 1 . 2 1 . . Low Security (%) 71 | 100 76 100 15 87 . 100 Level 1 18 | . 23 . 44 12 . . Level 2 9 | . . . 39 . . . Level 3 . | . . . . . . . Level 4 . | . . . . . . . Level 5 . | . . . . . . . High Security . | . . . . . . . Max Security . | . . . . . . . Squads Dispatched 7 | . 4 . 3 . . . Investigation 4 | . 3 . 1 . . . Extermination . | . . . . . . . Reinforcement 3 | . 1 . 2 . . . Assault . | . . . . . . . Garrison . | . . . . . . . Intercept . | . . . . . . . Construction Impeded . | . . . . . . . Haulers Reinforced . | . . . . . . . Stealth | -11 -10 -10 -9 -9 -9 -8 --------- Run | Scr Mat Min Mat Min Exi Min Distress Signals 7 | . 1 . 5 1 . . Communications Jammed . | . . . . . . . Distress Signals . | . . . . . . . Times Spotted 103 | . 25 2 32 35 5 4 Peak Tracking Total 16 | . 7 3 6 16 8 4 Tactical Retreats 7 | . . . 1 6 . . Traps | -11 -10 -10 -9 -9 -9 -8 ------- Run | Scr Mat Min Mat Min Exi Min Traps Triggered 3 | . 3 . . . . . Indirectly . | . . . . . . . Trap Hack Attempts . | . . . . . . . Triggered . | . . . . . . . Disarmed . | . . . . . . . Reprogrammed . | . . . . . . . Reused . | . . . . . . . Traps Extracted . | . . . . . . . Installed . | . . . . . . . Triggered . | . . . . . . . Machines | -11 -10 -10 -9 -9 -9 -8 ---------- Run | Scr Mat Min Mat Min Exi Min Machines Disabled 9 | . . . 5 . 4 . Max in Single Turn 2 | . . . 2 . 2 . Machines Sabotaged . | . . . . . . . Garrisons Compromised . | . . . . . . . Overloaded Fab Kills . | . . . . . . . Fab Network Shutdowns . | . . . . . . . Hacking | -11 -10 -10 -9 -9 -9 -8 --------- Run | Scr Mat Min Mat Min Exi Min Machines Accessed 12 | . 5 . 5 . 2 . Terminals 9 | . 5 . 4 . . . Fabricators . | . . . . . . . Repair Stations 1 | . . . 1 . . . Recycling Units . | . . . . . . . Scanalyzers . | . . . . . . . Garrison Access . | . . . . . . . Total Hacks 53 | . 12 . 10 . 31 . Successful 40 | . 3 . 6 . 31 . Failed 13 | . 9 . 4 . . . Catastrophic 4 | . 2 . 2 . . . Database Lockouts . | . . . . . . . Manual 20 | . 12 . 8 . . . Terminals 20 | . 12 . 8 . . . Fabricators . | . . . . . . . Repair Stations 2 | . . . 2 . . . Recycling Units . | . . . . . . . Scanalyzers . | . . . . . . . Garrison Access . | . . . . . . . Terminal Hacks 32 | . . . 1 . 31 . Record 31 | . . . . . 31 . Zone Layout 1 | . . . 1 . . . Fabricator Hacks . | . . . . . . . Repair Station Hacks 2 | . . . 2 . . . Scan Component 1 | . . . 1 . . . Repair 1 | . . . 1 . . . Recycling Unit Hacks . | . . . . . . . Scanalyzer . | . . . . . . . Garrison Access Hacks . | . . . . . . . Unauthorized Hacks 17 | . 9 . 8 . . . Terminals 6 | . 3 . 3 . . . Track 4 | . 2 . 2 . . . Assimilate 1 | . 1 . . . . . Botnet 1 | . . . 1 . . . Fabricators . | . . . . . . . Repair Stations . | . . . . . . . Recycling Units . | . . . . . . . Scanalyzers . | . . . . . . . Garrison Access . | . . . . . . . Data Cores Recovered . | . . . . . . . Used . | . . . . . . . Hacking Detections 9 | . 5 . 4 . . . Full Trace Events 1 | . . . 1 . . . Feedback Events . | . . . . . . . Feedback Blocked . | . . . . . . . Robot Schematics Acquired . | . . . . . . . Robots Built . | . . . . . . . Matter . | . . . . . . . Time . | . . . . . . . Total Robot Build Rating . | . . . . . . . Part Schematics Acquired . | . . . . . . . Parts Built . | . . . . . . . Matter . | . . . . . . . Time . | . . . . . . . Total Part Build Rating . | . . . . . . . Parts Repaired 1 | . . . 1 . . . Time 38 | . . . 38 . . . Parts Recycled . | . . . . . . . Recycled Matter . | . . . . . . . Retrieved Matter . | . . . . . . . Retrieved Components . | . . . . . . . Parts Scanalyzed . | . . . . . . . Part Schematics Acquired . | . . . . . . . Parts Damaged . | . . . . . . . Bothacking | -11 -10 -10 -9 -9 -9 -8 ------------ Run | Scr Mat Min Mat Min Exi Min Used RIF Installer . | . . . . . . . Robots Hacked . | . . . . . . . Non-combat . | . . . . . . . Combat . | . . . . . . . Robot Hacks Applied . | . . . . . . . Relay Couplers Released . | . . . . . . . Robots Rewired . | . . . . . . . Allies Hacked . | . . . . . . . Hacks Repelled . | . . . . . . . Allies | -11 -10 -10 -9 -9 -9 -8 -------- Run | Scr Mat Min Mat Min Exi Min Total Allies 6 | . . 5 . 1 . . Largest Group 4 | . . 4 3 1 1 . Highest-Rated Group 67 | . . 67 55 31 31 . Highest-Rated Ally 31 | . . 31 31 31 31 . Total Orders . | . . . . . . . Ally Attacks 76 | . . 8 55 13 . . Total Damage 985 | . . 98 779 108 . . Kills 15 | . . 3 8 4 . . Allies Corrupted . | . . . . . . . Allies Melted . | . . . . . . . Intel | -11 -10 -10 -9 -9 -9 -8 ------- Run | Scr Mat Min Mat Min Exi Min Robot Analysis Total . | . . . . . . . Derelict Logs Recovered 4 | . . 1 . 3 . . Drone Launches . | . . . . . . . Drone Recoveries . | . . . . . . . Exploration | -11 -10 -10 -9 -9 -9 -8 ------------- Run | Scr Mat Min Mat Min Exi Min Turns Passed 6465 | 58 914 1162 1211 1400 1598 122 Spaces Moved 2975 | 39 536 609 488 593 651 59 Core 6 | 6 . . . . . . Treads 2545 | . 327 609 488 588 533 . Legs 177 | . . . . . 118 59 Wheels 247 | 33 209 . . 5 . . Hover . | . . . . . . . Flight . | . . . . . . . Fastest Speed 50 | 50 80 180 180 130 150 180 Average Speed 183 | 77 139 180 192 199 207 180 Slowest Speed 270 | 100 180 180 200 200 270 180 Overloaded Moves . | . . . . . . . Propulsion Burnouts . | . . . . . . . Robots Hopped . | . . . . . . . Cave-ins Triggered . | . . . . . . . Exploration Rate (%) 55 | 3 70 93 53 95 62 15 Regions Visited 6 Branch Regions 4 Pre-discovered Areas 1 | . . . . . 1 . Known Exits Taken . | . . . . . . . Unknown Exits Taken 6 | 1 1 1 1 1 1 . Scrap Searched 4 | . . 2 . 2 . . Spaces Dug 23 | . 6 . . 15 2 . Terrain Destroyed 207 | . 56 . 39 56 44 12 Melee 8 | . . . . 6 2 . Projectile 2 | . . . . 1 . 1 AOE 197 | . 56 . 39 49 42 11 Actions | -11 -10 -10 -9 -9 -9 -8 --------- Run | Scr Mat Min Mat Min Exi Min Total 3592 | 53 627 645 667 720 812 68 Wait 175 | . 22 20 69 46 16 2 Move 2969 | 38 535 608 487 592 650 59 Hop . | . . . . . . . Pick Up 75 | 4 10 2 19 2 38 . Fast Attach 22 | 6 1 . 4 . 11 . Attach 22 | . 2 . 8 6 6 . Detach 9 | . . . 4 . 5 . Swap 62 | . 16 . 16 18 9 3 Drop 26 | . . . 11 . 15 . Fire 204 | 5 41 15 49 45 45 4 Melee 28 | . . . . 11 17 . Ram . | . . . . . . . Kick . | . . . . . . . Crush . | . . . . . . . Escape Stasis . | . . . . . . . Rewire . | . . . . . . . Trap . | . . . . . . . Miscellaneous . | . . . . . . . Route ------- -11/Scrapyard -10/Materials (discovered 3 exits: *Mat x2 / [*Min]) -10/Mines (discovered 2 exits: *Mat x2) -9/Materials -9/Mines (discovered 3 exits: [*Mat x2] / *Exi) -9/Exiles -8/Mines History --------- Turn | Location | Event 13 | -11/Scrapyard | Discovered new exit (range 16) 59 | -11/Scrapyard | Entered Materials 164 | -10/Materials | Discovered new exit (range 16) 265 | -10/Materials | Discovered new exit (range 15) 307 | -10/Materials | Build established: Mutant 860 | -10/Materials | Discovered new exit (range 16) 973 | -10/Materials | Entered Mines 977 | -10/Mines | Met a Derelict bent on vengeance 1020 | -10/Mines | Assisted by bots powering up and referring to "LRC-V3" 1381 | -10/Mines | Discovered new exit (range 12) 1901 | -10/Mines | Found a hidden stash of uninstalled traps 1935 | -10/Mines | Learned Materials garrison access intel 2119 | -10/Mines | Discovered new exit (range 6) 2135 | -10/Mines | Entered Materials 2135 | -9/Materials | Accompanied by 3 allies 2135 | -9/Materials | Evolved 2 slots: Utility x2 2140 | -9/Materials | Led the pair of lost Derelicts to an unsafe place 2384 | -9/Materials | Discovered new exit (range 9) 2688 | -9/Materials | Build established: Hauler-Mutant 3252 | -9/Materials | Repaired Katana 3346 | -9/Materials | Entered Mines 3418 | -9/Mines | Discovered new exit (range 7) 3750 | -9/Mines | Assembled infested the area 3855 | -9/Mines | Lost 4 parts (1p2n1u) 3883 | -9/Mines | Learned Materials garrison access intel 4293 | -9/Mines | Received a Rocket Launcher from a helpful Derelict 4308 | -9/Mines | Learned Materials trap positions 4312 | -9/Mines | Discovered new exit (range 5) 4330 | -9/Mines | Core integrity fell below 50% 4442 | -9/Mines | Learned Materials non-interactive machine intel 4495 | -9/Mines | Escorted by a lone wolf Derelict 4734 | -9/Mines | Deemed a non-threat by the Exiles lab entrance 4736 | -9/Mines | Discovered new exit (range 5) 4746 | -9/Mines | Entered Exiles 4746 | -9/Exiles | Accompanied by 1 ally 4796 | -9/Exiles | Met 8R-AWN 4824 | -9/Exiles | Met EX-HEX 4906 | -9/Exiles | Met EX-DEC 4918 | -9/Exiles | Learned location of Zion (-6) 4954 | -9/Exiles | Met EX-BIN 5922 | -9/Exiles | Attacked by the Exiles 6087 | -9/Exiles | Destroyed 8R-AWN 6110 | -9/Exiles | Found Prototype Device 6110 | -9/Exiles | Identified AS-neutralizer No. 17b 6118 | -9/Exiles | Found Prototype Protection 6118 | -9/Exiles | Identified 8R-AWN's Armor/EX 6123 | -9/Exiles | Found Prototype Protection 6123 | -9/Exiles | Identified 8R-AWN's Armor/TH 6135 | -9/Exiles | Found Prototype Ballistic Gun 6135 | -9/Exiles | Identified 8R-AWN's Boregun 6173 | -9/Exiles | Found Prototype Processor 6195 | -9/Exiles | Found 8R-AWN's Boregun 6320 | -9/Exiles | Discovered new exit (range 15) 6344 | -9/Exiles | Entered Mines 6457 | -8/Mines | P1-3CE came to Exiles' defense 6460 | -8/Mines | Core integrity fell below 20% 6466 | -8/Mines | Destroyed by P1-3CE with P1-3CE's Gatling Flakker Last Messages --------------- 06456_ Lgt. Angular Momentum Engine destroyed. 06457_ P1-3CE: "I came as fast as I could... Wait, it was you!" 06459_ HV Slug penetrates Wall. 06462_ HV Slug penetrates P1-3CE. 06462_ HV Slug penetrates Wall. 06462_ HV Slug penetrates P1-3CE. 06462_ P1-3CE suffers critical hit. 06462_ Destroyed Spk. Heavy Treads. 06462_ HV Slug penetrates Wall. 06465_ HV Slug penetrates P1-3CE. 06465_ HV Slug penetrates Wall. 06465_ HV Slug penetrates P1-3CE. 06465_ HV Slug penetrates Wall. 06466_ Humpback destroyed. 06466_ Hcp. Storage Unit crushed and broken. 06466_ Lgt. Treads crushed and broken. 06466_ Lgt. Cannon crushed and broken. 06466_ Imp. Assault Rifle crushed and broken. 06466_ Lgt. Treads crushed and broken. 06466_ Grenade Launcher crushed and broken. Map ----- +----------------------------------------------------+ | ???????## ##????????????????????????????? | | ????????# ## #?????????????????????????????? | | ????????# #####?????????????????????????????? | | ????????# #?????????????????????????????????? | | ????##### #?????????????????????????????????? | | ????# #?????????????????????????????????? | | ????# #####?????????????????????????????????? | | ????# #???####??????????????????????????????? | | ???## ##### ##?????????????????????????????? | | ???# #?????????????????????????????? | | ???## #?####????????????????????????? | | ????# ### ##???????????????????????? | | ????## ## ### ##??????????????????????? | | ?????##### ## ####???????????????????? | | ????###### ?????????????????? | | ??### ## ?????????????????? | | ?## ##### ##?????????????????????? | | ?# #####???# #??????????????????????? | | ?# ##???????# #??????????????????????? | | ?## ##????????# #??????????????????????? | | ?## ######????#=#??????????????????????? | | ?# ## ##???#[#??????????????????????? | | ?# #??##M#??????????????????????? | | ?## ##?#!=#??????????????????????? | | ??## """ ###!!#??????????????????????? | | ???### """ [!]]!@#??????????????????????? | | ?????## """ ######??????????????????????? | | ??????## ##???????????????????????????? | | ???????### ##????????????????????????????? | | ?????????## ##?????????????????????????????? | | ??????????####??????????????????????????????? | | ????????????????????????????????????????????? | | ????????????????????????????????????????????? | | ????????????????????????????????????????????? | | ????????????????????????????????????????????? | | ????????????????????????????????????????????? | | ????????????????????????????????????????????? | | ????????????????????????????????????????????? | | | | | | | | | | | | | | | | | | | | | | | | | +----------------------------------------------------+ Best States ------------- Heat Dissipation 54 Energy Generation 18 Energy Capacity 265 Matter Stores 300 Matter Capacity 300 Sight Range 16 Terrain Scan Density 10 Armor Coverage 1000 Resistance: EX 90 Evasion (%) 44 Targeting Accuracy 6 Recoil Reduction 2 Item Schematics ----------------- None Robot Schematics ------------------ None Fabricated ------------ Nothing Alien Tech Used ----------------- None Achievements -------------- None Challenges ------------ None Game ------ Seed MediumMatterRail Manual? 0 Play Time 00:40:06 Cumulative 972.5 hours Start 2020.03.20 @ 17:19:48 End 2020.03.20 @ 18:01:54 Sessions 1 Manual Loads 0 Difficulty Rogue Special Mode None Game No. 363 Rogue 363 Adventurer 0 Explorer 0 Win Type - Total 24 Types 13/1/7/0/0/0/3 Lore% 96 Gallery% 97 Achievement% 83 Wizard Run 0 Options --------- ASCII 0 Keyboard 0 Movement Vi Keybinds 0 Fullscreen 0 Font 12/Crisp Map View 76x50 Tactical HUD 1 Map Filters NONE Filters NONE Steam 1 RUN: babd2c12-0fa9-4950-9d2b-9c4458c4903b